fUST/lending_fUST_20250907
["ID","MTS","AMOUNT","RATE_DAILY","PERIOD"]
[383985129,1757224238965,-1055.49,0.00013698,2]
[383985130,1757224238974,-591.22910917,0.00013698,2]
[383985131,1757224238984,-480.0,0.00013698,2]
[383985132,1757224238993,-480.0,0.00013698,2]
[383985133,1757224239003,-483.34024859,0.00013698,2]
[383985134,1757224239012,-480.0,0.00013698,2]
[383985135,1757224239022,-480.0,0.00013698,2]
[383985136,1757224239031,-480.0,0.00013698,2]
[383985137,1757224239041,-480.0,0.00013698,2]
[383985138,1757224239051,-476.97424053,0.00013698,2]
[383985219,1757224243303,-63531.204213,0.00013561,2]
[383985222,1757224246503,-13424.25241662,0.00013561,2]
[383985236,1757224370744,1000.0,0.00025,30]
[383985238,1757224380035,1000.0,0.00025,30]
[383985239,1757224396504,694.53,0.00025,30]
[383985244,1757224446159,4565.73726784,0.00013158,2]
[383985257,1757224515351,300.0,0.00013158,2]
[383985275,1757224640180,4565.73726784,0.00013158,2]
[383985386,1757225405507,10000.0,0.00012697,2]
[383985417,1757225432613,-284.21706972,0.00013194,2]
[383985419,1757225432623,-168.0,0.0001356,2]
[383985421,1757225432634,-1349.82921836,0.00013598,2]
[383985422,1757225432643,-284.21706972,0.00013598,2]
[383985425,1757225432652,-284.21706969,0.00013667,2]
[383985426,1757225432662,-1200.0,0.00013694,2]
[383985427,1757225432672,-300.0,0.00013695,2]
[383985432,1757225432793,-300.0,0.00013695,2]
[383985433,1757225432810,-300.0,0.00013695,2]
[383985434,1757225432820,-1200.0,0.00013696,2]
[383985435,1757225432830,-500.0,0.00013697,2]
[383985436,1757225432839,-500.0,0.00013697,2]
[383985437,1757225432849,-172.37295643,0.00013697,2]
[383985438,1757225432858,-204.34208241,0.00013697,2]
[383985439,1757225432868,-168.332,0.00013697,2]
[383985440,1757225432878,-480.0,0.00013698,2]
[383985441,1757225432887,-520.29064363,0.00013698,2]
[383985442,1757225432900,-527.09,0.00013698,2]
[383985443,1757225432910,-480.0,0.00013698,2]
[383985444,1757225432919,-480.0,0.00013698,2]
[383985445,1757225432928,-483.73814685,0.00013698,2]
[383985446,1757225432937,-480.0,0.00013698,2]
[383985447,1757225432946,-451.35922026,0.00013698,2]
[383985466,1757225438340,-3975.0477411,0.00013561,2]
[383985468,1757225438350,-28.64077974,0.00013698,2]
[383985470,1757225438359,-480.0,0.00013698,2]
[383985472,1757225438369,-480.0,0.00013698,2]
[383985474,1757225438379,-291.62541495,0.00013698,2]
[383985476,1757225438395,-188.37458505,0.00013698,2]
[383985478,1757225438403,-480.0,0.00013698,2]
[383985480,1757225438413,-480.0,0.00013698,2]
[383985482,1757225438423,-484.18620917,0.00013698,2]
[383985484,1757225438432,-480.0,0.00013698,2]
[383985486,1757225438441,-480.0,0.00013698,2]
[383985489,1757225438451,-480.0,0.00013698,2]
[383985492,1757225438460,-480.0,0.00013698,2]
[383985495,1757225438469,-483.04192798,0.00013698,2]
[383985498,1757225438479,-484.73344031,0.00013698,2]
[383985502,1757225438488,-480.0,0.00013698,2]
[383985504,1757225438498,-480.0,0.00013698,2]
[383985506,1757225438508,-480.0,0.00013698,2]
[383985507,1757225438518,-480.0,0.00013698,2]
[383985510,1757225438527,-493.13178909,0.00013698,2]
[383985511,1757225438537,-480.0,0.00013698,2]
[383985514,1757225438547,-480.0,0.00013698,2]
[383985516,1757225438556,-480.0,0.00013698,2]
[383985518,1757225438567,-378.17148043,0.00013698,2]
[383985520,1757225438577,-480.0,0.00013698,2]
[383985522,1757225438586,-374.09492258,0.00013698,2]
[383985524,1757225438595,-179.49306646,0.00013698,2]
[383985526,1757225438605,-480.0,0.00013698,2]
[383985528,1757225438614,-480.0,0.00013698,2]
[383985530,1757225438623,-483.09925569,0.00013698,2]
[383985532,1757225438633,-480.0,0.00013698,2]
[383985534,1757225438642,-480.0,0.00013698,2]
[383985536,1757225438652,-993.4,0.00013698,2]
[383985538,1757225438662,-480.0,0.00013698,2]
[383985540,1757225438671,-480.0,0.00013698,2]
[383985542,1757225438680,-347.0101953,0.00013698,2]
[383985544,1757225438689,-488.01901536,0.00013698,2]
[383985545,1757225438698,-480.0,0.00013698,2]
[383985547,1757225438707,-636.14,0.00013698,2]
[383985550,1757225438717,-480.0,0.00013698,2]
[383985552,1757225438726,-151.732758,0.00013698,2]
[383985553,1757225438735,-480.0,0.00013698,2]
[383985556,1757225438744,-480.0,0.00013698,2]
[383985557,1757225438754,-480.0,0.00013698,2]
[383985559,1757225438764,-622.61,0.00013698,2]
[383985561,1757225438773,-480.0,0.00013698,2]
[383985564,1757225438785,-157.0,0.00013698,2]
[383985565,1757225438796,-157.0,0.00013698,2]
[383985567,1757225438806,-157.0,0.00013698,2]
[383985569,1757225438815,-486.63728857,0.00013698,2]
[383985571,1757225438824,-480.0,0.00013698,2]
[383985573,1757225438834,-484.18643483,0.00013698,2]
[383985575,1757225438843,-481.55303582,0.00013698,2]
[383985577,1757225438852,-480.0,0.00013698,2]
[383985579,1757225438863,-613.74180354,0.00013698,2]
[383985581,1757225438873,-482.50135047,0.00013698,2]
[383985583,1757225438883,-480.03512195,0.00013698,2]
[383985585,1757225438892,-480.0,0.00013698,2]
[383985587,1757225438901,-480.0,0.00013698,2]
[383985589,1757225438912,-480.0,0.00013698,2]
[383985591,1757225438922,-484.87190654,0.00013698,2]
[383985608,1757225439064,-480.0,0.00013698,2]
[383985610,1757225439074,-480.0,0.00013698,2]
[383985612,1757225439084,-338.81780835,0.00013698,2]
[383985614,1757225439094,-546.03148364,0.00013698,2]
[383985616,1757225439104,-480.0,0.00013698,2]
[383985618,1757225439113,-2733.12,0.00013698,2]
[383985620,1757225439122,-480.0,0.00013698,2]
[383985622,1757225439131,-480.0,0.00013698,2]
[383985624,1757225439140,-480.0,0.00013698,2]
[383985626,1757225439147,-480.0,0.00013698,2]
[383985628,1757225439156,-1153.13,0.00013698,2]
[383985630,1757225439166,-786.62833509,0.00013698,2]
[383985632,1757225439176,-759.59,0.00013698,2]
[383985634,1757225439185,-484.12269597,0.00013698,2]
[383985636,1757225439194,-480.0,0.00013698,2]
[383985638,1757225439204,-480.0,0.00013698,2]
[383985640,1757225439213,-480.0,0.00013698,2]
[383985642,1757225439222,-589.04,0.00013698,2]
[383985644,1757225439231,-154.248058,0.00013698,2]
[383985646,1757225439240,-161.399774,0.00013698,2]
[383985648,1757225439249,-480.0,0.00013698,2]
[383985650,1757225439259,-480.0,0.00013698,2]
[383985651,1757225439268,-480.0,0.00013698,2]
[383985652,1757225439278,-710.0,0.00013698,2]
[383985653,1757225439287,-480.0,0.00013698,2]
[383985654,1757225439297,-480.0,0.00013698,2]
[383985655,1757225439306,-480.0,0.00013698,2]
[383985656,1757225439316,-480.0,0.00013698,2]
[383985657,1757225439325,-480.0,0.00013698,2]
[383985658,1757225439335,-480.0,0.00013698,2]
[383985659,1757225439345,-151.588772,0.00013698,2]
[383985660,1757225439355,-184.51952853,0.00013698,2]
[383985661,1757225439365,-487.76,0.00013698,2]
[383985662,1757225439375,-188.42026816,0.00013698,2]
[383985663,1757225439385,-480.0,0.00013698,2]
[383985664,1757225439396,-480.0,0.00013698,2]
[383985665,1757225439406,-480.0,0.00013698,2]
[383985666,1757225439416,-480.0,0.00013698,2]
[383985667,1757225439426,-570.12307661,0.00013698,2]
[383985668,1757225439436,-855.52,0.00013698,2]
[383985669,1757225439446,-312.67182056,0.00013698,2]
[383985670,1757225439461,-167.32817944,0.00013698,2]
[383985671,1757225439470,-480.0,0.00013698,2]
[383985672,1757225439480,-480.0,0.00013698,2]
[383985673,1757225439489,-480.0,0.00013698,2]
[383985674,1757225439499,-480.0,0.00013698,2]
[383985675,1757225439508,-515.49,0.00013698,2]
[383985676,1757225439517,-151.0,0.00013698,2]
[383985677,1757225439527,-151.0,0.00013698,2]
[383985678,1757225439537,-480.0,0.00013698,2]
[383985679,1757225439546,-480.0,0.00013698,2]
[383985680,1757225439555,-482.1093245,0.00013698,2]
[383985681,1757225439564,-151.0,0.00013698,2]
[383985682,1757225439574,-151.0,0.00013698,2]
[383985683,1757225439583,-163.890392,0.00013698,2]
[383985685,1757225439593,-480.0,0.00013698,2]
[383985687,1757225439602,-480.0,0.00013698,2]
[383985690,1757225439612,-480.0,0.00013698,2]
[383985692,1757225439622,-422.15046608,0.00013698,2]
[383985694,1757225439631,-480.0,0.00013698,2]
[383985696,1757225439640,-480.0,0.00013698,2]
[383985698,1757225439650,-76.1686424,0.00013698,2]
[383985700,1757225439662,-390.9790112,0.00013698,2]
[383985705,1757225439704,-12.8523464,0.00013698,2]
[383985707,1757225439713,-480.0,0.00013698,2]
[383985709,1757225439722,-480.0,0.00013698,2]
[383985711,1757225439732,-480.0,0.00013698,2]
[383985713,1757225439743,-480.0,0.00013698,2]
[383985715,1757225439753,-480.0,0.00013698,2]
[383985717,1757225439762,-480.0,0.00013698,2]
[383985719,1757225439772,-699.89,0.00013698,2]
[383985721,1757225439783,-164.882557,0.00013698,2]
[383985723,1757225439793,-482.047496,0.00013698,2]
[383985725,1757225439803,-480.0,0.00013698,2]
[383985727,1757225439812,-480.0,0.00013698,2]
[383985729,1757225439822,-480.0,0.00013698,2]
[383985731,1757225439831,-486.95784566,0.00013698,2]
[383985733,1757225439841,-480.0,0.00013698,2]
[383985735,1757225439850,-480.0,0.00013698,2]
[383985737,1757225439860,-228.84626082,0.00013698,2]
[383985739,1757225439869,-480.0,0.00013698,2]
[383985741,1757225439879,-684.31,0.00013698,2]
[383985743,1757225439888,-480.0,0.00013698,2]
[383985745,1757225439898,-481.60744015,0.00013698,2]
[383985747,1757225439907,-480.0,0.00013698,2]
[383985749,1757225439916,-480.0,0.00013698,2]
[383985751,1757225439927,-480.0,0.00013698,2]
[383985753,1757225439936,-932.72,0.00013698,2]
[383985755,1757225439946,-480.0,0.00013698,2]
[383985757,1757225439955,-480.0,0.00013698,2]
[383985759,1757225439965,-480.0,0.00013698,2]
[383985762,1757225439974,-480.0,0.00013698,2]
[383985764,1757225439984,-909.38,0.00013698,2]
[383985766,1757225439994,-480.0,0.00013698,2]
[383985767,1757225440003,-480.0,0.00013698,2]
[383985770,1757225440013,-480.0,0.00013698,2]
[383985771,1757225440022,-482.04404883,0.00013698,2]
[383985773,1757225440031,-766.41,0.00013698,2]
[383985775,1757225440041,-531.13852828,0.00013698,2]
[383985777,1757225440050,-480.0,0.00013698,2]
[383985779,1757225440060,-480.0,0.00013698,2]
[383985781,1757225440071,-480.0,0.00013698,2]
[383985783,1757225440081,-480.0,0.00013698,2]
[383985785,1757225440090,-480.0,0.00013698,2]
[383985787,1757225440099,-480.0,0.00013698,2]
[383985789,1757225440109,-480.0,0.00013698,2]
[383985792,1757225440120,-348.1399198,0.00013698,2]
[383985793,1757225440130,-319.47710112,0.00013698,2]
[383985795,1757225440139,-480.0,0.00013698,2]
[383985797,1757225440149,-481.73957084,0.00013698,2]
[383985799,1757225440158,-480.0,0.00013698,2]
[383985802,1757225440168,-481.41411573,0.00013698,2]
[383985803,1757225440178,-575.51,0.00013698,2]
[383985805,1757225440187,-480.0,0.00013698,2]
[383985808,1757225440197,-480.91254341,0.00013698,2]
[383985810,1757225440206,-480.0,0.00013698,2]
[383985811,1757225440216,-480.0,0.00013698,2]
[383985813,1757225440225,-480.0,0.00013698,2]
[383985816,1757225440235,-797.81,0.00013698,2]
[383985817,1757225440244,-480.0,0.00013698,2]
[383985819,1757225440253,-486.58002458,0.00013698,2]
[383985821,1757225440263,-480.0,0.00013698,2]
[383985823,1757225440272,-480.0,0.00013698,2]
[383985825,1757225440282,-480.0,0.00013698,2]
[383985827,1757225440291,-518.42549044,0.00013698,2]
[383985830,1757225440305,-480.0,0.00013698,2]
[383985831,1757225440314,-481.15683934,0.00013698,2]
[383985834,1757225440329,-542.9682131,0.00013698,2]
[383985836,1757225440340,-480.0,0.00013698,2]
[383985838,1757225440356,-480.0,0.00013698,2]
[383985841,1757225440368,-483.43150584,0.00013698,2]
[383985843,1757225440379,-480.0,0.00013698,2]
[383985845,1757225440388,-480.0,0.00013698,2]
[383985847,1757225440398,-480.0,0.00013698,2]
[383985849,1757225440408,-483.34024859,0.00013698,2]
[383985851,1757225440417,-483.01994733,0.00013698,2]
[383985853,1757225440426,-480.0,0.00013698,2]
[383985854,1757225440436,-484.5112355,0.00013698,2]
[383985857,1757225440446,-578.62,0.00013698,2]
[383985859,1757225440456,-569.07,0.00013698,2]
[383985861,1757225440466,-611.26877476,0.00013698,2]
[383985863,1757225440475,-480.0,0.00013698,2]
[383985865,1757225440485,-480.0,0.00013698,2]
[383985867,1757225440495,-480.0,0.00013698,2]
[383985869,1757225440504,-480.0,0.00013698,2]
[383985871,1757225440514,-480.0,0.00013698,2]
[383985873,1757225440523,-480.0,0.00013698,2]
[383985875,1757225440533,-79.55075289,0.00013698,2]
[383985877,1757225440547,-500.12924711,0.00013698,2]
[383985879,1757225440557,-480.0,0.00013698,2]
[383985881,1757225440567,-480.0,0.00013698,2]
[383985883,1757225440577,-480.0,0.00013698,2]
[383985885,1757225440586,-482.67337649,0.00013698,2]
[383985887,1757225440596,-108.78162377,0.00013698,2]
[383985898,1757225440684,-371.21837623,0.00013698,2]
[383985900,1757225440694,-148.26556981,0.00013698,2]
[383986499,1757225446718,-974.26443019,0.00013698,2]
[383986502,1757225446730,-330.04158464,0.00013698,2]
[383986509,1757225446785,-149.95841536,0.00013698,2]
[383986511,1757225446797,-480.0,0.00013698,2]
[383986513,1757225446809,-480.0,0.00013698,2]
[383986515,1757225446821,-5.75580305,0.00013698,2]
[383995756,1757226269675,170.53024183,0.00013062,2]
[383995865,1757226638597,-170.53024183,0.00013327,2]
[383995866,1757226638607,-170.53024183,0.00013598,2]
[383995867,1757226638617,-170.53024181,0.00013667,2]
[383995868,1757226638627,-300.0,0.00013697,2]
[383995869,1757226638636,-524.41889006,0.00013698,2]
[383995870,1757226638645,-480.0,0.00013698,2]
[383995871,1757226638655,-480.0,0.00013698,2]
[383995872,1757226638664,-531.13852828,0.00013698,2]
[383995873,1757226638675,-480.0,0.00013698,2]
[383995874,1757226638684,-480.0,0.00013698,2]
[383995875,1757226638694,-480.0,0.00013698,2]
[383995876,1757226638704,-480.0,0.00013698,2]
[383995877,1757226638714,-480.0,0.00013698,2]
[383995879,1757226638724,-480.0,0.00013698,2]
[383995881,1757226638734,-480.0,0.00013698,2]
[383995882,1757226638743,-480.0,0.00013698,2]
[383995883,1757226638753,-578.62,0.00013698,2]
[383995885,1757226638762,-482.13806269,0.00013698,2]
[383995886,1757226638772,-480.0,0.00013698,2]
[383995888,1757226638781,-480.0,0.00013698,2]
[383995890,1757226638791,-481.60744015,0.00013698,2]
[383995891,1757226638800,-480.0,0.00013698,2]
[383995892,1757226638810,-480.0,0.00013698,2]
[383995893,1757226638819,-480.0,0.00013698,2]
[383995895,1757226638828,-571.7400257,0.00013698,2]
[383995896,1757226638838,-480.0,0.00013698,2]
[383995897,1757226638848,-480.0,0.00013698,2]
[383995899,1757226638857,-489.64376981,0.00013698,2]
[383995901,1757226638868,-489.01416016,0.00013698,2]
[383995903,1757226638877,-480.0,0.00013698,2]
[383995905,1757226638887,-480.0,0.00013698,2]
[383995908,1757226638897,-480.0,0.00013698,2]
[383995910,1757226638906,-480.0,0.00013698,2]
[383995912,1757226638915,-480.0,0.00013698,2]
[383995913,1757226638926,-482.047496,0.00013698,2]
[383995916,1757226638936,-480.0,0.00013698,2]
[383995917,1757226638945,-480.0,0.00013698,2]
[383995920,1757226638955,-480.0,0.00013698,2]
[383995921,1757226638964,-480.0,0.00013698,2]
[383995924,1757226638974,-480.0,0.00013698,2]
[383995925,1757226638983,-480.0,0.00013698,2]
[383995927,1757226638992,-480.0,0.00013698,2]
[383995929,1757226639001,-483.63718701,0.00013698,2]
[383995931,1757226639011,-486.58002458,0.00013698,2]
[383995933,1757226639020,-480.0,0.00013698,2]
[383995936,1757226639030,-480.0,0.00013698,2]
[383995938,1757226639039,-480.0,0.00013698,2]
[383995940,1757226639049,-480.0,0.00013698,2]
[383995942,1757226639058,-480.0,0.00013698,2]
[383995944,1757226639068,-480.0,0.00013698,2]
[383995946,1757226639078,-753.03,0.00013698,2]
[383995948,1757226639088,-1000.0,0.00013698,2]
[383995950,1757226639097,-341.46,0.00013698,2]
[383995952,1757226639107,-480.0,0.00013698,2]
[383995953,1757226639116,-480.0,0.00013698,2]
[383995956,1757226639127,-480.0,0.00013698,2]
[383995957,1757226639136,-575.51,0.00013698,2]
[383995960,1757226639146,-480.0,0.00013698,2]
[383995962,1757226639156,-480.0,0.00013698,2]
[383995964,1757226639166,-480.0,0.00013698,2]
[383995966,1757226639178,-480.0,0.00013698,2]
[383995968,1757226639189,-480.0,0.00013698,2]
[383995970,1757226639200,-480.0,0.00013698,2]
[383995972,1757226639209,-483.43150584,0.00013698,2]
[383995974,1757226639219,-480.0,0.00013698,2]
[383995976,1757226639228,-483.01994733,0.00013698,2]
[383995978,1757226639238,-484.5112355,0.00013698,2]
[383995980,1757226639248,-480.0,0.00013698,2]
[383995982,1757226639257,-684.14,0.00013698,2]
[383995984,1757226639267,-487.26565924,0.00013698,2]
[383995986,1757226639276,-480.0,0.00013698,2]
[383995988,1757226639286,-480.0,0.00013698,2]
[383995990,1757226639295,-480.0,0.00013698,2]
[383995992,1757226639306,-485.8674501,0.00013698,2]
[383995994,1757226639315,-484.0484773,0.00013698,2]
[383995996,1757226639324,-348.1399198,0.00013698,2]
[383995998,1757226639333,-480.0,0.00013698,2]
[383996000,1757226639342,-481.41411573,0.00013698,2]
[383996002,1757226639351,-480.0,0.00013698,2]
[383996004,1757226639361,-480.0,0.00013698,2]
[383996006,1757226639370,-480.91254341,0.00013698,2]
[383996008,1757226639379,-480.0,0.00013698,2]
[383996010,1757226639388,-480.0,0.00013698,2]
[383996012,1757226639397,-480.0,0.00013698,2]
[383996014,1757226639411,-480.0,0.00013698,2]
[383996016,1757226639420,-455.95514345,0.00013698,2]
[383996018,1757226639429,-269.1504988,0.00013698,2]
[383996125,1757226640780,-210.8495012,0.00013698,2]
[383996127,1757226640790,-481.15683934,0.00013698,2]
[383996129,1757226640799,-480.0,0.00013698,2]
[383996131,1757226640809,-727.94,0.00013698,2]
[383996133,1757226640819,-480.0,0.00013698,2]
[383996135,1757226640828,-481.73957084,0.00013698,2]
[383996138,1757226640838,-480.0,0.00013698,2]
[383996140,1757226640848,-480.0,0.00013698,2]
[383996142,1757226640857,-611.26877476,0.00013698,2]
[383996143,1757226640867,-483.65946977,0.00013698,2]
[383996145,1757226640877,-498.36943836,0.00013698,2]
[383996158,1757226640996,-191.67640573,0.00013698,2]
[383996417,1757226643637,245.21,0.00012329,2]
[383996710,1757226647112,-288.32359427,0.00013698,2]
[383996712,1757226647123,-311.67640573,0.00013698,2]
[384003404,1757226847260,10000.0,0.00013171,2]
[384003408,1757226871130,10000.0,0.00013171,2]
[384003411,1757226877824,10000.0,0.00013171,2]
[384003414,1757226884502,10000.0,0.00013171,2]
[384003417,1757226892164,10000.0,0.00013171,2]
[384003419,1757226899067,10000.0,0.00013171,2]
[384003423,1757226906730,10000.0,0.00013171,2]
[384003427,1757226914991,10000.0,0.00013171,2]
[384003485,1757227258791,756.50951634,0.00013158,2]
[384003529,1757227652293,7000.0,0.00025,30]
[384003542,1757227832037,-331.10014207,0.00013598,2]
[384003543,1757227832047,-1200.3498485,0.00013598,2]
[384003611,1757227837810,-333.25453754,0.00013598,2]
[384003613,1757227837820,-331.10014204,0.00013667,2]
[384003616,1757227837830,-493.0,0.00013688,2]
[384003618,1757227837839,-143.76821167,0.00013689,2]
[384003620,1757227837851,-1056.23178833,0.00013689,2]
[384003622,1757227837860,-300.0,0.00013689,2]
[384003624,1757227837869,-151.0,0.0001369,2]
[384003625,1757227837879,-151.0,0.0001369,2]
[384003626,1757227837889,-250.0,0.0001369,2]
[384003627,1757227837899,-253.55323436,0.0001369,2]
[384003628,1757227837909,-294.16391775,0.0001369,2]
[384003629,1757227837919,-2000.05749724,0.0001369,2]
[384003630,1757227837931,-963.85330514,0.0001369,2]
[384003631,1757227837943,-1003.90200101,0.0001369,2]
[384003632,1757227837965,-351.9401014,0.0001369,2]
[384003633,1757227837980,-41419.50256458,0.0001369,2]
[384003865,1757227840283,-4260.74453063,0.0001369,2]
[384003866,1757227840293,-500.0,0.00013697,2]
[384003867,1757227840302,-500.0,0.00013697,2]
[384003868,1757227840312,-307.43453656,0.00013697,2]
[384003869,1757227840321,-500.0,0.00013697,2]
[384003870,1757227840331,-500.0,0.00013697,2]
[384003871,1757227840340,-500.0,0.00013697,2]
[384003872,1757227840350,-500.0,0.00013697,2]
[384003873,1757227840358,-418.04978271,0.00013697,2]
[384003874,1757227840368,-500.0,0.00013697,2]
[384003875,1757227840377,-500.0,0.00013697,2]
[384003876,1757227840387,-500.0,0.00013697,2]
[384003877,1757227840396,-500.0,0.00013697,2]
[384003878,1757227840405,-500.0,0.00013697,2]
[384003879,1757227840415,-500.0,0.00013697,2]
[384003880,1757227840425,-500.0,0.00013697,2]
[384003881,1757227840434,-433.6828116,0.00013697,2]
[384003882,1757227840443,-500.0,0.00013697,2]
[384003883,1757227840453,-500.0,0.00013697,2]
[384003884,1757227840462,-500.0,0.00013697,2]
[384003885,1757227840472,-500.0,0.00013697,2]
[384003886,1757227840482,-500.0,0.00013697,2]
[384003887,1757227840491,-500.0,0.00013697,2]
[384003888,1757227840500,-500.0,0.00013697,2]
[384003889,1757227840510,-300.0,0.00013697,2]
[384003890,1757227840519,-500.0,0.00013697,2]
[384003891,1757227840528,-500.0,0.00013697,2]
[384003892,1757227840537,-500.0,0.00013697,2]
[384003893,1757227840546,-500.0,0.00013697,2]
[384003894,1757227840559,-500.0,0.00013697,2]
[384003895,1757227840568,-500.0,0.00013697,2]
[384003896,1757227840578,-500.0,0.00013697,2]
[384003897,1757227840587,-500.0,0.00013697,2]
[384003898,1757227840596,-500.0,0.00013697,2]
[384003899,1757227840605,-500.0,0.00013697,2]
[384003900,1757227840614,-500.0,0.00013697,2]
[384003901,1757227840623,-500.0,0.00013697,2]
[384003902,1757227840632,-546.55718473,0.00013697,2]
[384003903,1757227840641,-500.0,0.00013697,2]
[384003905,1757227840650,-500.0,0.00013697,2]
[384003906,1757227840659,-500.0,0.00013697,2]
[384003907,1757227840668,-500.0,0.00013697,2]
[384003908,1757227840677,-500.0,0.00013697,2]
[384003909,1757227840686,-500.0,0.00013697,2]
[384003910,1757227840695,-545.34753705,0.00013697,2]
[384003911,1757227840704,-500.0,0.00013697,2]
[384003912,1757227840713,-282.816393,0.00013697,2]
[384003914,1757227840723,-500.0,0.00013697,2]
[384003915,1757227840731,-192.77755992,0.00013697,2]
[384003916,1757227840741,-500.0,0.00013697,2]
[384003918,1757227840750,-176.10079909,0.00013697,2]
[384003920,1757227840759,-500.0,0.00013697,2]
[384003922,1757227840768,-176.10079909,0.00013697,2]
[384003924,1757227840777,-480.0,0.00013698,2]
[384003926,1757227840787,-480.0,0.00013698,2]
[384003928,1757227840797,-201.44453058,0.00013698,2]
[384003930,1757227840806,-480.0,0.00013698,2]
[384003932,1757227840816,-655.63,0.00013698,2]
[384003934,1757227840825,-481.30380213,0.00013698,2]
[384003936,1757227840836,-481.62722188,0.00013698,2]
[384003938,1757227840845,-480.0,0.00013698,2]
[384003940,1757227840855,-482.21545096,0.00013698,2]
[384003942,1757227840864,-483.93355937,0.00013698,2]
[384003944,1757227840873,-480.0,0.00013698,2]
[384003946,1757227840882,-415.55344171,0.00013698,2]
[384003948,1757227840892,-480.0,0.00013698,2]
[384003950,1757227840901,-484.0484773,0.00013698,2]
[384003952,1757227840911,-488.13445447,0.00013698,2]
[384003954,1757227840920,-721.65,0.00013698,2]
[384003956,1757227840930,-480.0,0.00013698,2]
[384003958,1757227840939,-480.0,0.00013698,2]
[384003960,1757227840949,-455.95514345,0.00013698,2]
[384003962,1757227840959,-480.0,0.00013698,2]
[384003964,1757227840969,-480.0,0.00013698,2]
[384003966,1757227840978,-481.13815407,0.00013698,2]
[384003968,1757227840987,-500.0,0.00013698,2]
[384003970,1757227840997,-157.0,0.00013698,2]
[384003972,1757227841006,-480.0,0.00013698,2]
[384003974,1757227841015,-480.0,0.00013698,2]
[384003976,1757227841024,-480.0,0.00013698,2]
[384003978,1757227841033,-480.0,0.00013698,2]
[384003980,1757227841043,-480.0,0.00013698,2]
[384003982,1757227841052,-480.0,0.00013698,2]
[384003984,1757227841062,-480.0,0.00013698,2]
[384003986,1757227841075,-480.0,0.00013698,2]
[384003988,1757227841085,-459.84,0.00013698,2]
[384003990,1757227841094,-340.2093566,0.00013698,2]
[384003992,1757227841104,-480.0,0.00013698,2]
[384003994,1757227841114,-801.75,0.00013698,2]
[384003996,1757227841124,-480.0,0.00013698,2]
[384003998,1757227841133,-480.0,0.00013698,2]
[384004000,1757227841144,-480.0,0.00013698,2]
[384004002,1757227841154,-500.93076175,0.00013698,2]
[384004004,1757227841163,-480.0,0.00013698,2]
[384004006,1757227841172,-480.0,0.00013698,2]
[384004008,1757227841183,-480.0,0.00013698,2]
[384004010,1757227841191,-480.0,0.00013698,2]
[384004011,1757227841201,-480.0,0.00013698,2]
[384004014,1757227841211,-153.6150527,0.00013698,2]
[384004015,1757227841221,-717.61,0.00013698,2]
[384004017,1757227841231,-483.43241327,0.00013698,2]
[384004019,1757227841241,-484.3936267,0.00013698,2]
[384004022,1757227841251,-482.32461804,0.00013698,2]
[384004024,1757227841261,-480.0,0.00013698,2]